[Event "Titled Tuesday Blitz June 20 Late 2023"]
[White "Licznerski, Lukasz"]
[Black "Chabris, Christopher"]
[WhiteFideId "1179250"]
[BlackFideId "2005263"]
[WhiteElo "2453"]
[BlackElo "2412"]
[Result "1-0"]
[Round "4"]
[TimeControl "180+2"]
[Date "2023.06.20"]
[WhiteClock "0:00:05"]
[BlackClock "0:00:00"]
[Board "107"]

1. e4 {[%clk 0:03:00]}  e5 {[%clk 0:02:57]} 2. Nf3 {[%clk 0:03:00]}  Nc6 {[%clk 0:02:57]} 3. Bb5 {[%clk 0:03:01]}  a6 {[%clk 0:02:58]} 4. Bxc6 {[%clk 0:03:01]}  dxc6 {[%clk 0:02:58]} 5. O-O {[%clk 0:03:02]}  Bg4 {[%clk 0:02:57]} 6. h3 {[%clk 0:03:02]}  h5 {[%clk 0:02:58]} 7. d3 {[%clk 0:03:02]}  Qf6 {[%clk 0:02:57]} 8. Be3 {[%clk 0:03:02]}  Bxf3 {[%clk 0:02:54]} 9. Qxf3 {[%clk 0:03:02]}  Qxf3 {[%clk 0:02:54]} 10. gxf3 {[%clk 0:03:03]}  Bd6 {[%clk 0:02:54]} 11. Nd2 {[%clk 0:03:03]}  Ne7 {[%clk 0:02:54]} 12. Rfb1 {[%clk 0:03:00]}  f5 {[%clk 0:02:48]} 13. Nc4 {[%clk 0:02:59]}  f4 {[%clk 0:02:45]} 14. Bd2 {[%clk 0:03:00]}  g5 {[%clk 0:02:39]} 15. Kf1 {[%clk 0:02:47]}  Kd7 {[%clk 0:02:29]} 16. Ke2 {[%clk 0:02:46]}  Rag8 {[%clk 0:02:28]} 17. Rg1 {[%clk 0:02:30]}  c5 {[%clk 0:02:18]} 18. a3 {[%clk 0:02:22]}  Nc6 {[%clk 0:02:16]} 19. c3 {[%clk 0:02:14]}  b5 {[%clk 0:01:49]} 20. Nxd6 {[%clk 0:02:10]}  Kxd6 {[%clk 0:01:40]} 21. b4 {[%clk 0:01:54]}  Rg6 {[%clk 0:01:33]} 22. bxc5+ {[%clk 0:01:47]}  Kxc5 {[%clk 0:01:32]} 23. a4 {[%clk 0:01:47]}  Rd8 {[%clk 0:01:30]} 24. axb5 {[%clk 0:01:45]}  axb5 {[%clk 0:01:30]} 25. Ra6 {[%clk 0:01:34]}  b4 {[%clk 0:01:16]} 26. Rb1 {[%clk 0:01:25]}  g4 {[%clk 0:01:02]} 27. hxg4 {[%clk 0:01:05]}  hxg4 {[%clk 0:01:02]} 28. fxg4 {[%clk 0:01:03]}  Rxg4 {[%clk 0:00:58]} 29. Ra2 {[%clk 0:00:49]}  bxc3 {[%clk 0:00:50]} 30. Bxc3 {[%clk 0:00:49]}  Rg2 {[%clk 0:00:45]} 31. Rc1 {[%clk 0:00:43]}  Kd6 {[%clk 0:00:22]} 32. Ra6 {[%clk 0:00:42]}  Kd7 {[%clk 0:00:19]} 33. Rxc6 {[%clk 0:00:38]}  Kxc6 {[%clk 0:00:14]} 34. Bxe5+ {[%clk 0:00:38]}  Kb5 {[%clk 0:00:12]} 35. Bxc7 {[%clk 0:00:22]}  Rc8 {[%clk 0:00:12]} 36. Rb1+ {[%clk 0:00:21]}  Kc6 {[%clk 0:00:10]} 37. Bxf4 {[%clk 0:00:20]}  Ra8 {[%clk 0:00:09]} 38. Rb2 {[%clk 0:00:17]}  Ra1 {[%clk 0:00:09]} 39. Rc2+ {[%clk 0:00:17]}  Kd7 {[%clk 0:00:08]} 40. Bg3 {[%clk 0:00:17]}  Rgg1 {[%clk 0:00:08]} 41. Kf3 {[%clk 0:00:13]}  Rad1 {[%clk 0:00:07]} 42. Ke3 {[%clk 0:00:12]}  Rge1+ {[%clk 0:00:06]} 43. Kd4 {[%clk 0:00:12]}  Ke6 {[%clk 0:00:03]} 44. f4 {[%clk 0:00:09]}  Rg1 {[%clk 0:00:03]} 45. f5+ {[%clk 0:00:09]}  Kf7 {[%clk 0:00:02]} 46. Be5 {[%clk 0:00:08]}  Rh1 {[%clk 0:00:01]} 47. Rc7+ {[%clk 0:00:07]}  Ke8 {[%clk 0:00:00]} 48. Rc3 {[%clk 0:00:05]} 1-0


[Site "https://www.chess.com"]

[Event "Titled Tuesday Blitz June 20 Late 2023"]
[White "Spaqi, Wilson"]
[Black "Xu, Yi"]
[WhiteFideId "2053888"]
[BlackFideId "8605564"]
[WhiteElo "2410"]
[BlackElo "2460"]
[Result "0-1"]
[Round "4"]
[TimeControl "180+2"]
[Date "2023.06.20"]
[WhiteClock "0:01:11"]
[BlackClock "0:01:31"]
[Board "108"]

1. d4 {[%clk 0:03:00]}  Nf6 {[%clk 0:02:59]} 2. Bf4 {[%clk 0:03:01]}  d5 {[%clk 0:02:59]} 3. e3 {[%clk 0:03:01]}  Bf5 {[%clk 0:02:59]} 4. Bd3 {[%clk 0:03:01]}  e6 {[%clk 0:02:55]} 5. Bxf5 {[%clk 0:03:00]}  exf5 {[%clk 0:02:55]} 6. Nf3 {[%clk 0:03:00]}  Bd6 {[%clk 0:02:55]} 7. O-O {[%clk 0:02:58]}  O-O {[%clk 0:02:53]} 8. c4 {[%clk 0:02:53]}  dxc4 {[%clk 0:02:53]} 9. Qc2 {[%clk 0:02:52]}  Bxf4 {[%clk 0:02:17]} 10. exf4 {[%clk 0:02:53]}  g6 {[%clk 0:02:17]} 11. Qxc4 {[%clk 0:02:52]}  Nbd7 {[%clk 0:02:18]} 12. Ne5 {[%clk 0:02:49]}  Nb6 {[%clk 0:02:18]} 13. Qd3 {[%clk 0:02:43]}  Nbd5 {[%clk 0:02:18]} 14. g3 {[%clk 0:02:42]}  Re8 {[%clk 0:02:10]} 15. Nc3 {[%clk 0:02:41]}  c6 {[%clk 0:02:10]} 16. Rfe1 {[%clk 0:02:31]}  Qb6 {[%clk 0:02:05]} 17. Re2 {[%clk 0:02:21]}  Rad8 {[%clk 0:02:05]} 18. Rae1 {[%clk 0:02:20]}  Nb4 {[%clk 0:02:02]} 19. Qc4 {[%clk 0:02:19]}  Nfd5 {[%clk 0:01:51]} 20. a3 {[%clk 0:01:57]}  Na6 {[%clk 0:01:48]} 21. Nxd5 {[%clk 0:01:47]}  Rxd5 {[%clk 0:01:36]} 22. Nd7 {[%clk 0:01:21]}  Rxe2 {[%clk 0:01:34]} 23. Qxe2 {[%clk 0:01:19]}  Qd8 {[%clk 0:01:33]} 24. Qe7 {[%clk 0:01:11]}  Rxd7 {[%clk 0:01:31]} 0-1


[Site "https://www.chess.com"]

[Event "Titled Tuesday Blitz June 20 Late 2023"]
[White "Ladan, Nicholas"]
[Black "Raja Rithvik R"]
[WhiteFideId "30918855"]
[BlackFideId "35007394"]
[WhiteElo "2167"]
[BlackElo "2395"]
[Result "0-1"]
[Round "4"]
[TimeControl "180+2"]
[Date "2023.06.20"]
[WhiteClock "0:00:00"]
[BlackClock "0:01:32"]
[Board "110"]

1. d4 {[%clk 0:03:00]}  Nf6 {[%clk 0:02:58]} 2. Nf3 {[%clk 0:03:01]}  d5 {[%clk 0:02:58]} 3. Bf4 {[%clk 0:03:01]}  c5 {[%clk 0:02:57]} 4. e3 {[%clk 0:03:01]}  Nc6 {[%clk 0:02:58]} 5. Nbd2 {[%clk 0:03:02]}  e6 {[%clk 0:02:58]} 6. c3 {[%clk 0:03:02]}  Bd6 {[%clk 0:02:59]} 7. Bg3 {[%clk 0:03:02]}  O-O {[%clk 0:02:59]} 8. Bd3 {[%clk 0:03:02]}  b6 {[%clk 0:03:00]} 9. Qe2 {[%clk 0:03:03]}  Bb7 {[%clk 0:02:52]} 10. Rd1 {[%clk 0:03:00]}  h6 {[%clk 0:02:53]} 11. e4 {[%clk 0:02:56]}  Bxg3 {[%clk 0:02:51]} 12. hxg3 {[%clk 0:02:53]}  dxe4 {[%clk 0:02:50]} 13. Nxe4 {[%clk 0:02:53]}  cxd4 {[%clk 0:02:50]} 14. Nxf6+ {[%clk 0:02:22]}  Qxf6 {[%clk 0:02:49]} 15. Qe4 {[%clk 0:02:22]}  Rfd8 {[%clk 0:02:42]} 16. g4 {[%clk 0:01:56]}  Kf8 {[%clk 0:02:09]} 17. cxd4 {[%clk 0:01:41]}  Rab8 {[%clk 0:02:02]} 18. Qe3 {[%clk 0:00:16]}  Nxd4 {[%clk 0:01:59]} 19. Nxd4 {[%clk 0:00:14]}  Qxd4 {[%clk 0:01:55]} 20. Qxd4 {[%clk 0:00:11]}  Rxd4 {[%clk 0:01:56]} 21. O-O {[%clk 0:00:11]}  Rbd8 {[%clk 0:01:53]} 22. Be2 {[%clk 0:00:11]}  Rd2 {[%clk 0:01:54]} 23. Rxd2 {[%clk 0:00:05]}  Rxd2 {[%clk 0:01:55]} 24. Bf3 {[%clk 0:00:05]}  Bxf3 {[%clk 0:01:54]} 25. gxf3 {[%clk 0:00:06]}  Rxb2 {[%clk 0:01:55]} 26. Rc1 {[%clk 0:00:05]}  Rxa2 {[%clk 0:01:55]} 27. Rc7 {[%clk 0:00:05]}  a5 {[%clk 0:01:52]} 28. Rb7 {[%clk 0:00:05]}  Rb2 {[%clk 0:01:52]} 29. Kg2 {[%clk 0:00:05]}  a4 {[%clk 0:01:52]} 30. Ra7 {[%clk 0:00:05]}  b5 {[%clk 0:01:52]} 31. f4 {[%clk 0:00:06]}  Rb3 {[%clk 0:01:51]} 32. f5 {[%clk 0:00:06]}  exf5 {[%clk 0:01:51]} 33. gxf5 {[%clk 0:00:07]}  a3 {[%clk 0:01:51]} 34. f3 {[%clk 0:00:06]}  b4 {[%clk 0:01:44]} 35. Kg3 {[%clk 0:00:06]}  Rb2 {[%clk 0:01:45]} 36. Kf4 {[%clk 0:00:05]}  a2 {[%clk 0:01:40]} 37. Ke5 {[%clk 0:00:05]}  b3 {[%clk 0:01:34]} 38. f6 {[%clk 0:00:03]}  Re2+ {[%clk 0:01:31]} 39. Kf5 {[%clk 0:00:03]}  gxf6 {[%clk 0:01:30]} 40. Kxf6 {[%clk 0:00:04]}  Re6+ {[%clk 0:01:31]} 41. Kf5 {[%clk 0:00:00]}  b2 {[%clk 0:01:32]} 0-1


[Site "https://www.chess.com"]

[Event "Titled Tuesday Blitz June 20 Late 2023"]
[White "dodoucb"]
[Black "Lin, Dachey"]
[BlackFideId "2029650"]
[WhiteElo "2405"]
[BlackElo "2313"]
[Result "0-1"]
[Round "4"]
[TimeControl "180+2"]
[Date "2023.06.20"]
[WhiteClock "0:00:02"]
[BlackClock "0:01:58"]
[Board "111"]

1. e4 {[%clk 0:03:00]}  g6 {[%clk 0:02:51]} 2. d4 {[%clk 0:02:54]}  Bg7 {[%clk 0:02:51]} 3. Nf3 {[%clk 0:02:52]}  c6 {[%clk 0:02:49]} 4. Nc3 {[%clk 0:02:45]}  d5 {[%clk 0:02:49]} 5. e5 {[%clk 0:02:43]}  Bg4 {[%clk 0:02:47]} 6. Be2 {[%clk 0:02:42]}  e6 {[%clk 0:02:47]} 7. h3 {[%clk 0:02:39]}  Bxf3 {[%clk 0:02:47]} 8. Bxf3 {[%clk 0:02:39]}  Nd7 {[%clk 0:02:46]} 9. Be3 {[%clk 0:02:38]}  Ne7 {[%clk 0:02:41]} 10. g4 {[%clk 0:02:35]}  c5 {[%clk 0:02:40]} 11. dxc5 {[%clk 0:01:19]}  Nxe5 {[%clk 0:02:36]} 12. Bg2 {[%clk 0:01:18]}  N7c6 {[%clk 0:02:35]} 13. O-O {[%clk 0:01:11]}  d4 {[%clk 0:02:32]} 14. Ne4 {[%clk 0:00:57]}  dxe3 {[%clk 0:02:31]} 15. Nd6+ {[%clk 0:00:57]}  Ke7 {[%clk 0:02:17]} 16. fxe3 {[%clk 0:00:52]}  Qa5 {[%clk 0:02:17]} 17. Nxb7 {[%clk 0:00:45]}  Qc7 {[%clk 0:02:06]} 18. Nd6 {[%clk 0:00:18]}  Rhd8 {[%clk 0:02:04]} 19. c3 {[%clk 0:00:17]}  a5 {[%clk 0:02:04]} 20. a3 {[%clk 0:00:16]}  a4 {[%clk 0:02:04]} 21. Rf4 {[%clk 0:00:13]}  Ra5 {[%clk 0:02:00]} 22. Rxa4 {[%clk 0:00:11]}  Rxc5 {[%clk 0:01:59]} 23. Qc1 {[%clk 0:00:02]}  Qxd6 {[%clk 0:01:58]} 0-1


[Site "https://www.chess.com"]

[Event "Titled Tuesday Blitz June 20 Late 2023"]
[White "Fiorito, Joaquin"]
[Black "i_like_explosions"]
[WhiteFideId "180173"]
[WhiteElo "2199"]
[BlackElo "2405"]
[Result "1-0"]
[Round "4"]
[TimeControl "180+2"]
[Date "2023.06.20"]
[WhiteClock "0:02:06"]
[BlackClock "0:01:31"]
[Board "112"]

1. d4 {[%clk 0:03:00]}  Nf6 {[%clk 0:03:00]} 2. c4 {[%clk 0:03:00]}  e6 {[%clk 0:03:00]} 3. Nc3 {[%clk 0:03:00]}  Bb4 {[%clk 0:03:00]} 4. e3 {[%clk 0:03:01]}  O-O {[%clk 0:02:59]} 5. Bd2 {[%clk 0:03:02]}  c5 {[%clk 0:02:59]} 6. a3 {[%clk 0:03:01]}  Bxc3 {[%clk 0:02:58]} 7. Bxc3 {[%clk 0:03:02]}  b6 {[%clk 0:02:57]} 8. b4 {[%clk 0:02:50]}  cxd4 {[%clk 0:02:54]} 9. exd4 {[%clk 0:02:51]}  d5 {[%clk 0:02:54]} 10. c5 {[%clk 0:02:51]}  Ne4 {[%clk 0:02:54]} 11. Bb2 {[%clk 0:02:50]}  bxc5 {[%clk 0:02:50]} 12. dxc5 {[%clk 0:02:50]}  a5 {[%clk 0:02:39]} 13. b5 {[%clk 0:02:48]}  Nd7 {[%clk 0:02:11]} 14. c6 {[%clk 0:02:46]}  Ndc5 {[%clk 0:02:11]} 15. Rc1 {[%clk 0:02:45]}  a4 {[%clk 0:02:09]} 16. Qd4 {[%clk 0:02:38]}  Qf6 {[%clk 0:02:02]} 17. Qxf6 {[%clk 0:02:37]}  gxf6 {[%clk 0:02:00]} 18. f3 {[%clk 0:02:38]}  Nb3 {[%clk 0:01:59]} 19. fxe4 {[%clk 0:02:38]}  Nxc1 {[%clk 0:02:00]} 20. Bxc1 {[%clk 0:02:39]}  dxe4 {[%clk 0:02:00]} 21. b6 {[%clk 0:02:39]}  Rb8 {[%clk 0:02:00]} 22. Be3 {[%clk 0:02:38]}  e5 {[%clk 0:01:59]} 23. Bb5 {[%clk 0:02:37]}  f5 {[%clk 0:01:59]} 24. g3 {[%clk 0:02:37]}  Be6 {[%clk 0:01:58]} 25. Ne2 {[%clk 0:02:36]}  Bd5 {[%clk 0:01:54]} 26. Kf2 {[%clk 0:02:35]}  Rfc8 {[%clk 0:01:54]} 27. Rc1 {[%clk 0:02:35]}  Kf8 {[%clk 0:01:52]} 28. Rc5 {[%clk 0:02:31]}  Be6 {[%clk 0:01:51]} 29. Rxe5 {[%clk 0:02:31]}  Ke7 {[%clk 0:01:52]} 30. Nf4 {[%clk 0:02:28]}  Kd6 {[%clk 0:01:50]} 31. Bd4 {[%clk 0:02:11]}  Rxb6 {[%clk 0:01:37]} 32. Rxe6+ {[%clk 0:02:12]}  fxe6 {[%clk 0:01:37]} 33. Bxb6 {[%clk 0:02:12]}  e5 {[%clk 0:01:37]} 34. Ne2 {[%clk 0:02:09]}  Rxc6 {[%clk 0:01:36]} 35. Bxc6 {[%clk 0:02:09]}  Kxc6 {[%clk 0:01:37]} 36. Bd8 {[%clk 0:02:08]}  Kd5 {[%clk 0:01:37]} 37. Ke3 {[%clk 0:02:08]}  Kc4 {[%clk 0:01:37]} 38. Be7 {[%clk 0:02:08]}  h5 {[%clk 0:01:35]} 39. Ng1 {[%clk 0:02:05]}  Kd5 {[%clk 0:01:34]} 40. Nh3 {[%clk 0:02:05]}  Kc4 {[%clk 0:01:33]} 41. Ng5 {[%clk 0:02:05]}  Kd5 {[%clk 0:01:34]} 42. Bb4 {[%clk 0:02:05]}  Kc4 {[%clk 0:01:33]} 43. Nxe4 {[%clk 0:02:05]}  fxe4 {[%clk 0:01:31]} 44. Kxe4 {[%clk 0:02:06]} 1-0


[Site "https://www.chess.com"]

[Event "Titled Tuesday Blitz June 20 Late 2023"]
[White "Buchenau, Frank"]
[Black "Adewumi, Tanitoluwa"]
[WhiteFideId "4604350"]
[BlackFideId "30966396"]
[WhiteElo "2157"]
[BlackElo "2666"]
[Result "1/2-1/2"]
[Round "4"]
[TimeControl "180+2"]
[Date "2023.06.20"]
[WhiteClock "0:00:03"]
[BlackClock "0:00:04"]
[Board "113"]

1. e4 {[%clk 0:03:00]}  c5 {[%clk 0:02:54]} 2. Nf3 {[%clk 0:03:00]}  e6 {[%clk 0:02:55]} 3. d4 {[%clk 0:03:00]}  cxd4 {[%clk 0:02:55]} 4. Nxd4 {[%clk 0:03:00]}  Nc6 {[%clk 0:02:56]} 5. Nc3 {[%clk 0:03:00]}  Qc7 {[%clk 0:02:56]} 6. Be3 {[%clk 0:03:00]}  a6 {[%clk 0:02:55]} 7. Bd3 {[%clk 0:02:58]}  b5 {[%clk 0:02:50]} 8. Nxc6 {[%clk 0:02:57]}  Qxc6 {[%clk 0:02:51]} 9. a4 {[%clk 0:02:57]}  b4 {[%clk 0:02:47]} 10. Nb1 {[%clk 0:02:49]}  Bb7 {[%clk 0:02:39]} 11. Nd2 {[%clk 0:02:47]}  Nf6 {[%clk 0:02:29]} 12. O-O {[%clk 0:02:43]}  Bc5 {[%clk 0:02:19]} 13. Qe2 {[%clk 0:02:34]}  Bxe3 {[%clk 0:02:06]} 14. Qxe3 {[%clk 0:02:34]}  O-O {[%clk 0:02:04]} 15. f4 {[%clk 0:02:25]}  Rac8 {[%clk 0:01:57]} 16. Qd4 {[%clk 0:02:00]}  Qc5 {[%clk 0:01:45]} 17. Qxc5 {[%clk 0:01:58]}  Rxc5 {[%clk 0:01:46]} 18. e5 {[%clk 0:01:55]}  Nd5 {[%clk 0:01:43]} 19. Ne4 {[%clk 0:01:54]}  Rc7 {[%clk 0:01:37]} 20. Nd6 {[%clk 0:01:49]}  Ba8 {[%clk 0:01:26]} 21. a5 {[%clk 0:01:32]}  h6 {[%clk 0:01:10]} 22. Rf2 {[%clk 0:01:28]}  f6 {[%clk 0:01:07]} 23. exf6 {[%clk 0:01:23]}  Nxf6 {[%clk 0:01:05]} 24. Ra4 {[%clk 0:01:03]}  Rb8 {[%clk 0:00:56]} 25. Rd2 {[%clk 0:00:45]}  Nd5 {[%clk 0:00:40]} 26. g3 {[%clk 0:00:39]}  Bc6 {[%clk 0:00:30]} 27. Ra1 {[%clk 0:00:37]}  Ba8 {[%clk 0:00:29]} 28. f5 {[%clk 0:00:30]}  Rc6 {[%clk 0:00:26]} 29. Nc4 {[%clk 0:00:20]}  Rc5 {[%clk 0:00:22]} 30. fxe6 {[%clk 0:00:18]}  dxe6 {[%clk 0:00:23]} 31. Re1 {[%clk 0:00:14]}  Rbc8 {[%clk 0:00:12]} 32. Rxe6 {[%clk 0:00:12]}  Bb7 {[%clk 0:00:12]} 33. b3 {[%clk 0:00:11]}  Nc3 {[%clk 0:00:12]} 34. Rf2 {[%clk 0:00:11]}  Bd5 {[%clk 0:00:10]} 35. Re7 {[%clk 0:00:11]}  Rf8 {[%clk 0:00:07]} 36. Rxf8+ {[%clk 0:00:11]}  Kxf8 {[%clk 0:00:06]} 37. Ra7 {[%clk 0:00:12]}  Bxc4 {[%clk 0:00:06]} 38. Bxc4 {[%clk 0:00:11]}  Rxa5 {[%clk 0:00:06]} 39. Rxa6 {[%clk 0:00:11]}  Re5 {[%clk 0:00:05]} 40. Re6 {[%clk 0:00:10]}  Rc5 {[%clk 0:00:04]} 41. Re1 {[%clk 0:00:08]}  g5 {[%clk 0:00:04]} 42. Kf2 {[%clk 0:00:08]}  Kg7 {[%clk 0:00:03]} 43. Ke3 {[%clk 0:00:08]}  Re5+ {[%clk 0:00:03]} 44. Kd2 {[%clk 0:00:09]}  Kf6 {[%clk 0:00:03]} 45. Rxe5 {[%clk 0:00:08]}  Kxe5 {[%clk 0:00:04]} 46. Ke3 {[%clk 0:00:08]}  Nd1+ {[%clk 0:00:04]} 47. Ke2 {[%clk 0:00:07]}  Nc3+ {[%clk 0:00:04]} 48. Ke3 {[%clk 0:00:07]}  h5 {[%clk 0:00:05]} 49. Kf3 {[%clk 0:00:07]}  Nd1 {[%clk 0:00:03]} 50. Ke2 {[%clk 0:00:07]}  Nc3+ {[%clk 0:00:03]} 51. Kd3 {[%clk 0:00:07]}  h4 {[%clk 0:00:02]} 52. Ke3 {[%clk 0:00:07]}  Nd1+ {[%clk 0:00:02]} 53. Ke2 {[%clk 0:00:07]}  Nc3+ {[%clk 0:00:02]} 54. Ke3 {[%clk 0:00:07]}  Ne4 {[%clk 0:00:02]} 55. gxh4 {[%clk 0:00:07]}  gxh4 {[%clk 0:00:03]} 56. Kf3 {[%clk 0:00:07]}  Nf6 {[%clk 0:00:03]} 57. Bd3 {[%clk 0:00:06]}  Kd4 {[%clk 0:00:03]} 58. Kf4 {[%clk 0:00:06]}  Kc3 {[%clk 0:00:03]} 59. Kg5 {[%clk 0:00:06]}  Nd5 {[%clk 0:00:02]} 60. Kxh4 {[%clk 0:00:06]}  Nf4 {[%clk 0:00:02]} 61. Bf5 {[%clk 0:00:06]}  Nd5 {[%clk 0:00:02]} 62. Kg5 {[%clk 0:00:06]}  Ne3 {[%clk 0:00:02]} 63. Bg6 {[%clk 0:00:06]}  Nxc2 {[%clk 0:00:03]} 64. h4 {[%clk 0:00:06]}  Kxb3 {[%clk 0:00:02]} 65. h5 {[%clk 0:00:06]}  Kc3 {[%clk 0:00:03]} 66. Bf7 {[%clk 0:00:06]}  Nd4 {[%clk 0:00:02]} 67. h6 {[%clk 0:00:05]}  Nf3+ {[%clk 0:00:02]} 68. Kf6 {[%clk 0:00:05]}  Nd4 {[%clk 0:00:01]} 69. h7 {[%clk 0:00:05]}  b3 {[%clk 0:00:01]} 70. Bxb3 {[%clk 0:00:04]}  Nxb3 {[%clk 0:00:02]} 71. h8=Q {[%clk 0:00:05]}  Nd4 {[%clk 0:00:03]} 72. Qh3+ {[%clk 0:00:05]}  Kc4 {[%clk 0:00:02]} 73. Qe3 {[%clk 0:00:05]}  Kd5 {[%clk 0:00:02]} 74. Kg5 {[%clk 0:00:05]}  Ne6+ {[%clk 0:00:03]} 75. Kf6 {[%clk 0:00:05]}  Nd4 {[%clk 0:00:03]} 76. Qe5+ {[%clk 0:00:05]}  Kc4 {[%clk 0:00:03]} 77. Kg6 {[%clk 0:00:03]}  Kd3 {[%clk 0:00:04]} 78. Qd6 {[%clk 0:00:03]}  Ke4 {[%clk 0:00:04]} 79. Kf6 {[%clk 0:00:03]}  Nf3 {[%clk 0:00:01]} 80. Qe7+ {[%clk 0:00:03]}  Kf4 {[%clk 0:00:01]} 81. Qe6 {[%clk 0:00:03]}  Kg3 {[%clk 0:00:01]} 82. Qd6+ {[%clk 0:00:03]}  Kg4 {[%clk 0:00:01]} 83. Qd1 {[%clk 0:00:02]}  Kf4 {[%clk 0:00:02]} 84. Ke6 {[%clk 0:00:02]}  Ke3 {[%clk 0:00:02]} 85. Qc1+ {[%clk 0:00:02]}  Ke4 {[%clk 0:00:03]} 86. Qc5 {[%clk 0:00:03]}  Nd4+ {[%clk 0:00:03]} 87. Kf7 {[%clk 0:00:02]}  Nf5 {[%clk 0:00:03]} 88. Qc8 {[%clk 0:00:02]}  Nd6+ {[%clk 0:00:03]} 89. Ke6 {[%clk 0:00:03]}  Nxc8 {[%clk 0:00:04]} 1/2-1/2


[Site "https://www.chess.com"]

[Event "Titled Tuesday Blitz June 20 Late 2023"]
[White "Hajiyev, Kanan"]
[Black "sebastianmarinp"]
[WhiteFideId "13404148"]
[WhiteElo "2115"]
[BlackElo "2366"]
[Result "1-0"]
[Round "4"]
[TimeControl "180+2"]
[Date "2023.06.20"]
[WhiteClock "0:00:20"]
[BlackClock "0:00:00"]
[Board "122"]

1. d4 {[%clk 0:02:48]}  Nf6 {[%clk 0:02:59]} 2. Nf3 {[%clk 0:02:49]}  e6 {[%clk 0:02:59]} 3. c4 {[%clk 0:02:49]}  Bb4+ {[%clk 0:02:59]} 4. Nbd2 {[%clk 0:02:48]}  O-O {[%clk 0:02:58]} 5. a3 {[%clk 0:02:48]}  Be7 {[%clk 0:02:56]} 6. b4 {[%clk 0:02:48]}  a5 {[%clk 0:02:53]} 7. b5 {[%clk 0:02:46]}  c5 {[%clk 0:02:36]} 8. e3 {[%clk 0:02:36]}  d5 {[%clk 0:02:29]} 9. Bb2 {[%clk 0:02:32]}  Nbd7 {[%clk 0:02:18]} 10. cxd5 {[%clk 0:02:29]}  Nxd5 {[%clk 0:02:12]} 11. e4 {[%clk 0:02:24]}  Nf4 {[%clk 0:01:57]} 12. g3 {[%clk 0:02:20]}  Ng6 {[%clk 0:01:53]} 13. h4 {[%clk 0:02:13]}  cxd4 {[%clk 0:01:52]} 14. h5 {[%clk 0:02:12]}  Nge5 {[%clk 0:01:52]} 15. Bxd4 {[%clk 0:02:05]}  Bf6 {[%clk 0:01:44]} 16. h6 {[%clk 0:01:59]}  g6 {[%clk 0:01:29]} 17. Be2 {[%clk 0:01:52]}  b6 {[%clk 0:00:57]} 18. Qc2 {[%clk 0:01:32]}  Bb7 {[%clk 0:00:48]} 19. Rd1 {[%clk 0:01:30]}  Qe7 {[%clk 0:00:38]} 20. Qb2 {[%clk 0:01:26]}  Nxf3+ {[%clk 0:00:33]} 21. Bxf3 {[%clk 0:01:25]}  Bxd4 {[%clk 0:00:19]} 22. Qxd4 {[%clk 0:01:26]}  e5 {[%clk 0:00:19]} 23. Qb2 {[%clk 0:01:21]}  Nc5 {[%clk 0:00:18]} 24. O-O {[%clk 0:01:01]}  Qg5 {[%clk 0:00:18]} 25. Kg2 {[%clk 0:01:01]}  Qxh6 {[%clk 0:00:17]} 26. Qxe5 {[%clk 0:01:01]}  Rfe8 {[%clk 0:00:10]} 27. Qc7 {[%clk 0:00:58]}  Rad8 {[%clk 0:00:05]} 28. Rh1 {[%clk 0:00:54]}  Qg5 {[%clk 0:00:03]} 29. Qxb6 {[%clk 0:00:45]}  Rxd2 {[%clk 0:00:02]} 30. Rxd2 {[%clk 0:00:43]}  Qxd2 {[%clk 0:00:03]} 31. Qxc5 {[%clk 0:00:43]}  Bxe4 {[%clk 0:00:03]} 32. Bxe4 {[%clk 0:00:37]}  Rxe4 {[%clk 0:00:04]} 33. Qc8+ {[%clk 0:00:28]}  Kg7 {[%clk 0:00:03]} 34. Qc6 {[%clk 0:00:29]}  Re6 {[%clk 0:00:03]} 35. Qf3 {[%clk 0:00:27]}  Qb2 {[%clk 0:00:02]} 36. Qf4 {[%clk 0:00:22]}  h5 {[%clk 0:00:00]} 37. a4 {[%clk 0:00:20]} 1-0


[Site "https://www.chess.com"]

[Event "Titled Tuesday Blitz June 20 Late 2023"]
[White "Novik, Maxim"]
[Black "Jakubowska, Anna"]
[WhiteFideId "4102924"]
[BlackFideId "1121952"]
[WhiteElo "2287"]
[BlackElo "2001"]
[Result "0-1"]
[Round "4"]
[TimeControl "180+2"]
[Date "2023.06.20"]
[WhiteClock "0:00:00"]
[BlackClock "0:00:24"]
[Board "124"]

1. c4 {[%clk 0:02:17]}  e5 {[%clk 0:02:58]} 2. Nc3 {[%clk 0:02:16]}  Nc6 {[%clk 0:02:59]} 3. Nf3 {[%clk 0:02:16]}  g6 {[%clk 0:02:59]} 4. d4 {[%clk 0:02:14]}  Bg7 {[%clk 0:02:55]} 5. d5 {[%clk 0:02:11]}  Nce7 {[%clk 0:02:53]} 6. e4 {[%clk 0:02:10]}  d6 {[%clk 0:02:53]} 7. Be2 {[%clk 0:02:09]}  f5 {[%clk 0:02:52]} 8. Bg5 {[%clk 0:02:03]}  Nf6 {[%clk 0:02:48]} 9. Bxf6 {[%clk 0:02:02]}  Bxf6 {[%clk 0:02:40]} 10. Nd2 {[%clk 0:02:02]}  O-O {[%clk 0:02:37]} 11. h4 {[%clk 0:02:02]}  f4 {[%clk 0:02:28]} 12. h5 {[%clk 0:02:01]}  g5 {[%clk 0:02:28]} 13. Bg4 {[%clk 0:01:59]}  h6 {[%clk 0:02:27]} 14. Qf3 {[%clk 0:01:52]}  Bxg4 {[%clk 0:02:18]} 15. Qxg4 {[%clk 0:01:52]}  Qc8 {[%clk 0:02:18]} 16. f3 {[%clk 0:01:52]}  Qxg4 {[%clk 0:02:15]} 17. fxg4 {[%clk 0:01:52]}  c6 {[%clk 0:02:14]} 18. Ke2 {[%clk 0:01:50]}  cxd5 {[%clk 0:02:12]} 19. cxd5 {[%clk 0:01:47]}  Rfc8 {[%clk 0:02:09]} 20. Rac1 {[%clk 0:01:48]}  a6 {[%clk 0:01:47]} 21. Na4 {[%clk 0:01:43]}  Rxc1 {[%clk 0:01:37]} 22. Rxc1 {[%clk 0:01:41]}  Rc8 {[%clk 0:01:38]} 23. Rxc8+ {[%clk 0:01:39]}  Nxc8 {[%clk 0:01:37]} 24. Kd3 {[%clk 0:01:39]}  Bd8 {[%clk 0:01:34]} 25. Nb3 {[%clk 0:01:38]}  Kf7 {[%clk 0:01:32]} 26. a3 {[%clk 0:01:25]}  Ke7 {[%clk 0:01:31]} 27. Nd2 {[%clk 0:01:22]}  Kd7 {[%clk 0:01:30]} 28. b4 {[%clk 0:01:16]}  Bb6 {[%clk 0:01:23]} 29. Nc4 {[%clk 0:01:02]}  Ba7 {[%clk 0:01:21]} 30. Na5 {[%clk 0:01:01]}  Kc7 {[%clk 0:01:19]} 31. Nb2 {[%clk 0:00:57]}  Bd4 {[%clk 0:01:07]} 32. Nbc4 {[%clk 0:00:56]}  Ba7 {[%clk 0:00:59]} 33. Nd2 {[%clk 0:00:49]}  Nb6 {[%clk 0:00:58]} 34. Nf3 {[%clk 0:00:47]}  Nd7 {[%clk 0:00:54]} 35. Nc4 {[%clk 0:00:44]}  Nf6 {[%clk 0:00:52]} 36. Ncxe5 {[%clk 0:00:32]}  dxe5 {[%clk 0:00:49]} 37. Nxe5 {[%clk 0:00:33]}  Bb8 {[%clk 0:00:45]} 38. Nf7 {[%clk 0:00:27]}  Nxg4 {[%clk 0:00:44]} 39. e5 {[%clk 0:00:28]}  Kd7 {[%clk 0:00:43]} 40. Ke4 {[%clk 0:00:29]}  Ke7 {[%clk 0:00:41]} 41. Nh8 {[%clk 0:00:17]}  Nxe5 {[%clk 0:00:39]} 42. Kf5 {[%clk 0:00:13]}  f3 {[%clk 0:00:29]} 43. gxf3 {[%clk 0:00:10]}  Nxf3 {[%clk 0:00:29]} 44. Kg6 {[%clk 0:00:10]}  g4 {[%clk 0:00:27]} 45. Kxh6 {[%clk 0:00:10]}  g3 {[%clk 0:00:28]} 46. Ng6+ {[%clk 0:00:10]}  Kf6 {[%clk 0:00:27]} 47. Kh7 {[%clk 0:00:04]}  g2 {[%clk 0:00:26]} 48. h6 {[%clk 0:00:05]}  g1=Q {[%clk 0:00:25]} 49. Nf4 {[%clk 0:00:00]}  Bxf4 {[%clk 0:00:24]} 0-1


[Site "https://www.chess.com"]